Workbook

Sheet Ceturkšņa pārdoš. datu atskaite
A2: CETURKŠŅA PĀRDOŠANAS DATU ATSKAITE | J2: RĀDĪT POPULĀRĀKOS | K2: 5 | L2: PRODUKTI
J4: RĀDĪT VISUS PĀRĒJOS | K4: NĒ | L4: PRODUKTI
B34: PRODUKTS | C34: 1. CETURKSNIS | D34: 2. CETURKSNIS | E34: 3. CETURKSNIS | F34: 4. CETURKSNIS | G34: KOPSUMMA
B35: Rāmji | C35: 4000 | D35: 4500 | E35: 5000 | F35: 5000 | G35: =SUM(Pārdošana[[#This Row],[1. CETURKSNIS]:[4. CETURKSNIS]]) -> 18500
B36: Disku bremzes, priekšējās | C36: 294 | D36: 249.9 | E36: 323.4 | F36: 367.5 | G36: =SUM(Pārdošana[[#This Row],[1. CETURKSNIS]:[4. CETURKSNIS]]) -> 1234.8
B37: Kalipera bremzes, priekšējās | C37: 200 | D37: 170 | E37: 220 | F37: 250 | G37: =SUM(Pārdošana[[#This Row],[1. CETURKSNIS]:[4. CETURKSNIS]]) -> 840
B38: Disku bremzes, aizmugurējās | C38: 400 | D38: 340 | E38: 440 | F38: 500 | G38: =SUM(Pārdošana[[#This Row],[1. CETURKSNIS]:[4. CETURKSNIS]]) -> 1680
B39: Kalipera bremzes, aizmugurējās | C39: 294 | D39: 249.9 | E39: 323.4 | F39: 367.5 | G39: =SUM(Pārdošana[[#This Row],[1. CETURKSNIS]:[4. CETURKSNIS]]) -> 1234.8
B40: Sēdekļi | C40: 235 | D40: 199.75 | E40: 32 | F40: 293.75 | G40: =SUM(Pārdošana[[#This Row],[1. CETURKSNIS]:[4. CETURKSNIS]]) -> 760.5
B41: Dakšas | C41: 100 | D41: 85 | E41: 110 | F41: 125 | G41: =SUM(Pārdošana[[#This Row],[1. CETURKSNIS]:[4. CETURKSNIS]]) -> 420
B42: Bremžu troses | C42: 300 | D42: 255 | E42: 330 | F42: 375 | G42: =SUM(Pārdošana[[#This Row],[1. CETURKSNIS]:[4. CETURKSNIS]]) -> 1260
B43: Ātruma pārslēga troses | C43: 250 | D43: 212.5 | E43: 275 | F43: 312.5 | G43: =SUM(Pārdošana[[#This Row],[1. CETURKSNIS]:[4. CETURKSNIS]]) -> 1050
B44: Aizmugurējie zobrati | C44: 400 | D44: 340 | E44: 440 | F44: 500 | G44: =SUM(Pārdošana[[#This Row],[1. CETURKSNIS]:[4. CETURKSNIS]]) -> 1680
B45: Priekšējie zobrati | C45: 200 | D45: 170 | E45: 220 | F45: 250 | G45: =SUM(Pārdošana[[#This Row],[1. CETURKSNIS]:[4. CETURKSNIS]]) -> 840
B46: Stūres | C46: 1895 | D46: 1610.75 | E46: 3445 | F46: 3333 | G46: =SUM(Pārdošana[[#This Row],[1. CETURKSNIS]:[4. CETURKSNIS]]) -> 10283.75
B47: Bremžu sviras | C47: 544 | D47: 462.4 | E47: 598.4 | F47: 680 | G47: =SUM(Pārdošana[[#This Row],[1. CETURKSNIS]:[4. CETURKSNIS]]) -> 2284.8
B48: Sēdekļu balsti | C48: 200 | D48: 170 | E48: 220 | F48: 250 | G48: =SUM(Pārdošana[[#This Row],[1. CETURKSNIS]:[4. CETURKSNIS]]) -> 840
B49: Stūres skavas | C49: 60 | D49: 51 | E49: 66 | F49: 75 | G49: =SUM(Pārdošana[[#This Row],[1. CETURKSNIS]:[4. CETURKSNIS]]) -> 252
B50: Sēdekļa somiņas | C50: 2413 | D50: 2051.05 | E50: 4000 | F50: 3016.25 | G50: =SUM(Pārdošana[[#This Row],[1. CETURKSNIS]:[4. CETURKSNIS]]) -> 11480.3
B51: Spieķi | C51: 233 | D51: 198.05 | E51: 256.3 | F51: 291.25 | G51: =SUM(Pārdošana[[#This Row],[1. CETURKSNIS]:[4. CETURKSNIS]]) -> 978.6
B52: Stīpas | C52: 354 | D52: 300.9 | E52: 389.4 | F52: 442.5 | G52: =SUM(Pārdošana[[#This Row],[1. CETURKSNIS]:[4. CETURKSNIS]]) -> 1486.8
B53: Riepas | C53: 423 | D53: 359.55 | E53: 465.3 | F53: 528.75 | G53: =SUM(Pārdošana[[#This Row],[1. CETURKSNIS]:[4. CETURKSNIS]]) -> 1776.6
B54: Rokturi | C54: 2222 | D54: 1888.7 | E54: 2444.2 | F54: 2777.5 | G54: =SUM(Pārdošana[[#This Row],[1. CETURKSNIS]:[4. CETURKSNIS]]) -> 9332.4
B55: Rokturu lenta | C55: 1550.4 | D55: 1317.84 | E55: 1705.44 | F55: 1938 | G55: =SUM(Pārdošana[[#This Row],[1. CETURKSNIS]:[4. CETURKSNIS]]) -> 6511.68
B56: Polsteri | C56: 30 | D56: 25.5 | E56: 33 | F56: 37.5 | G56: =SUM(Pārdošana[[#This Row],[1. CETURKSNIS]:[4. CETURKSNIS]]) -> 126
B57: Ķēdes | C57: 208 | D57: 176.8 | E57: 228.8 | F57: 260 | G57: =SUM(Pārdošana[[#This Row],[1. CETURKSNIS]:[4. CETURKSNIS]]) -> 873.6
B58: Ātrumu pārslēdzēji | C58: 356 | D58: 302.6 | E58: 391.6 | F58: 445 | G58: =SUM(Pārdošana[[#This Row],[1. CETURKSNIS]:[4. CETURKSNIS]]) -> 1495.2
B59: Ātri atbrīvojamas rumbas | C59: 258 | D59: 219.3 | E59: 283.8 | F59: 322.5 | G59: =SUM(Pārdošana[[#This Row],[1. CETURKSNIS]:[4. CETURKSNIS]]) -> 1083.6
B60: Standarta rumbas | C60: 414 | D60: 351.9 | E60: 455.4 | F60: 517.5 | G60: =SUM(Pārdošana[[#This Row],[1. CETURKSNIS]:[4. CETURKSNIS]]) -> 1738.8
B61: Pedāļi | C61: 369 | D61: 313.65 | E61: 405.9 | F61: 461.25 | G61: =SUM(Pārdošana[[#This Row],[1. CETURKSNIS]:[4. CETURKSNIS]]) -> 1549.8
B62: Ķēdes aizsargi | C62: 324 | D62: 275.4 | E62: 356.4 | F62: 405 | G62: =SUM(Pārdošana[[#This Row],[1. CETURKSNIS]:[4. CETURKSNIS]]) -> 1360.8
B63: Spoguļi | C63: 87 | D63: 73.95 | E63: 95.7 | F63: 108.75 | G63: =SUM(Pārdošana[[#This Row],[1. CETURKSNIS]:[4. CETURKSNIS]]) -> 365.4

Sheet aprēķini (hidden)
A1: *** Šai lapai jāpaliek slēptai***
E4: Produkts | F4: 1. CETURKSNIS | G4: 2. CETURKSNIS | H4: 3. CETURKSNIS | I4: 4. CETURKSNIS | J4: Kopā
B5: 1 | C5: =IF($B5>n,"",LARGE(Pārdošana[KOPSUMMA],1)) -> 18500 | D5: =IF($B5>n,"",IF(C4=C5,MATCH(C5,OFFSET(Pārdošana[KOPSUMMA],D4,),0)+D4,MATCH(C5,Pārdošana[KOPSUMMA],0))) -> 1 | E5: =IF($B5>n,"",INDEX(Pārdošana[PRODUKTS],D5)) -> Rāmji | F5: =IF($B5>n,"",INDEX(Pārdošana[1. CETURKSNIS],$D5)) -> 4000 | G5: =IF($B5>n,"",INDEX(Pārdošana[2. CETURKSNIS],$D5)) -> 4500 | H5: =IF($B5>n,"",INDEX(Pārdošana[3. CETURKSNIS],$D5)) -> 5000 | I5: =IF($B5>n,"",INDEX(Pārdošana[4. CETURKSNIS],$D5)) -> 5000 | J5: =IF($B5>n,"",INDEX(Pārdošana[KOPSUMMA],$D5)) -> 18500
B6: 2 | C6: =IF($B6>n,"",LARGE(Pārdošana[KOPSUMMA],2)) -> 11480.3 | D6: =IF($B6>n,"",IF(C5=C6,MATCH(C6,OFFSET(Pārdošana[KOPSUMMA],D5,),0)+D5,MATCH(C6,Pārdošana[KOPSUMMA],0))) -> 16 | E6: =IF($B6>n,"",INDEX(Pārdošana[PRODUKTS],D6)) -> Sēdekļa somiņas | F6: =IF($B6>n,"",INDEX(Pārdošana[1. CETURKSNIS],$D6)) -> 2413 | G6: =IF($B6>n,"",INDEX(Pārdošana[2. CETURKSNIS],$D6)) -> 2051.05 | H6: =IF($B6>n,"",INDEX(Pārdošana[3. CETURKSNIS],$D6)) -> 4000 | I6: =IF($B6>n,"",INDEX(Pārdošana[4. CETURKSNIS],$D6)) -> 3016.25 | J6: =IF($B6>n,"",INDEX(Pārdošana[KOPSUMMA],$D6)) -> 11480.3
B7: 3 | C7: =IF($B7>n,"",LARGE(Pārdošana[KOPSUMMA],3)) -> 10283.75 | D7: =IF($B7>n,"",IF(C6=C7,MATCH(C7,OFFSET(Pārdošana[KOPSUMMA],D6,),0)+D6,MATCH(C7,Pārdošana[KOPSUMMA],0))) -> 12 | E7: =IF($B7>n,"",INDEX(Pārdošana[PRODUKTS],D7)) -> Stūres | F7: =IF($B7>n,"",INDEX(Pārdošana[1. CETURKSNIS],$D7)) -> 1895 | G7: =IF($B7>n,"",INDEX(Pārdošana[2. CETURKSNIS],$D7)) -> 1610.75 | H7: =IF($B7>n,"",INDEX(Pārdošana[3. CETURKSNIS],$D7)) -> 3445 | I7: =IF($B7>n,"",INDEX(Pārdošana[4. CETURKSNIS],$D7)) -> 3333 | J7: =IF($B7>n,"",INDEX(Pārdošana[KOPSUMMA],$D7)) -> 10283.75
B8: 4 | C8: =IF($B8>n,"",LARGE(Pārdošana[KOPSUMMA],4)) -> 9332.4 | D8: =IF($B8>n,"",IF(C7=C8,MATCH(C8,OFFSET(Pārdošana[KOPSUMMA],D7,),0)+D7,MATCH(C8,Pārdošana[KOPSUMMA],0))) -> 20 | E8: =IF($B8>n,"",INDEX(Pārdošana[PRODUKTS],D8)) -> Rokturi | F8: =IF($B8>n,"",INDEX(Pārdošana[1. CETURKSNIS],$D8)) -> 2222 | G8: =IF($B8>n,"",INDEX(Pārdošana[2. CETURKSNIS],$D8)) -> 1888.7 | H8: =IF($B8>n,"",INDEX(Pārdošana[3. CETURKSNIS],$D8)) -> 2444.2 | I8: =IF($B8>n,"",INDEX(Pārdošana[4. CETURKSNIS],$D8)) -> 2777.5 | J8: =IF($B8>n,"",INDEX(Pārdošana[KOPSUMMA],$D8)) -> 9332.4
B9: 5 | C9: =IF($B9>n,"",LARGE(Pārdošana[KOPSUMMA],5)) -> 6511.68 | D9: =IF($B9>n,"",IF(C8=C9,MATCH(C9,OFFSET(Pārdošana[KOPSUMMA],D8,),0)+D8,MATCH(C9,Pārdošana[KOPSUMMA],0))) -> 21 | E9: =IF($B9>n,"",INDEX(Pārdošana[PRODUKTS],D9)) -> Rokturu lenta | F9: =IF($B9>n,"",INDEX(Pārdošana[1. CETURKSNIS],$D9)) -> 1550.4 | G9: =IF($B9>n,"",INDEX(Pārdošana[2. CETURKSNIS],$D9)) -> 1317.84 | H9: =IF($B9>n,"",INDEX(Pārdošana[3. CETURKSNIS],$D9)) -> 1705.44 | I9: =IF($B9>n,"",INDEX(Pārdošana[4. CETURKSNIS],$D9)) -> 1938 | J9: =IF($B9>n,"",INDEX(Pārdošana[KOPSUMMA],$D9)) -> 6511.68
B10: 6 | C10: =IF($B10>n,"",LARGE(Pārdošana[KOPSUMMA],6)) ->  | D10: =IF($B10>n,"",IF(C9=C10,MATCH(C10,OFFSET(Pārdošana[KOPSUMMA],D9,),0)+D9,MATCH(C10,Pārdošana[KOPSUMMA],0))) ->  | E10: =IF($B10>n,"",INDEX(Pārdošana[PRODUKTS],D10)) ->  | F10: =IF($B10>n,"",INDEX(Pārdošana[1. CETURKSNIS],$D10)) ->  | G10: =IF($B10>n,"",INDEX(Pārdošana[2. CETURKSNIS],$D10)) ->  | H10: =IF($B10>n,"",INDEX(Pārdošana[3. CETURKSNIS],$D10)) ->  | I10: =IF($B10>n,"",INDEX(Pārdošana[4. CETURKSNIS],$D10)) ->  | J10: =IF($B10>n,"",INDEX(Pārdošana[KOPSUMMA],$D10)) -> 
B11: 7 | C11: =IF($B11>n,"",LARGE(Pārdošana[KOPSUMMA],7)) ->  | D11: =IF($B11>n,"",IF(C10=C11,MATCH(C11,OFFSET(Pārdošana[KOPSUMMA],D10,),0)+D10,MATCH(C11,Pārdošana[KOPSUMMA],0))) ->  | E11: =IF($B11>n,"",INDEX(Pārdošana[PRODUKTS],D11)) ->  | F11: =IF($B11>n,"",INDEX(Pārdošana[1. CETURKSNIS],$D11)) ->  | G11: =IF($B11>n,"",INDEX(Pārdošana[2. CETURKSNIS],$D11)) ->  | H11: =IF($B11>n,"",INDEX(Pārdošana[3. CETURKSNIS],$D11)) ->  | I11: =IF($B11>n,"",INDEX(Pārdošana[4. CETURKSNIS],$D11)) ->  | J11: =IF($B11>n,"",INDEX(Pārdošana[KOPSUMMA],$D11)) -> 
B12: 8 | C12: =IF($B12>n,"",LARGE(Pārdošana[KOPSUMMA],8)) ->  | D12: =IF($B12>n,"",IF(C11=C12,MATCH(C12,OFFSET(Pārdošana[KOPSUMMA],D11,),0)+D11,MATCH(C12,Pārdošana[KOPSUMMA],0))) ->  | E12: =IF($B12>n,"",INDEX(Pārdošana[PRODUKTS],D12)) ->  | F12: =IF($B12>n,"",INDEX(Pārdošana[1. CETURKSNIS],$D12)) ->  | G12: =IF($B12>n,"",INDEX(Pārdošana[2. CETURKSNIS],$D12)) ->  | H12: =IF($B12>n,"",INDEX(Pārdošana[3. CETURKSNIS],$D12)) ->  | I12: =IF($B12>n,"",INDEX(Pārdošana[4. CETURKSNIS],$D12)) ->  | J12: =IF($B12>n,"",INDEX(Pārdošana[KOPSUMMA],$D12)) -> 
B13: 9 | C13: =IF($B13>n,"",LARGE(Pārdošana[KOPSUMMA],9)) ->  | D13: =IF($B13>n,"",IF(C12=C13,MATCH(C13,OFFSET(Pārdošana[KOPSUMMA],D12,),0)+D12,MATCH(C13,Pārdošana[KOPSUMMA],0))) ->  | E13: =IF($B13>n,"",INDEX(Pārdošana[PRODUKTS],D13)) ->  | F13: =IF($B13>n,"",INDEX(Pārdošana[1. CETURKSNIS],$D13)) ->  | G13: =IF($B13>n,"",INDEX(Pārdošana[2. CETURKSNIS],$D13)) ->  | H13: =IF($B13>n,"",INDEX(Pārdošana[3. CETURKSNIS],$D13)) ->  | I13: =IF($B13>n,"",INDEX(Pārdošana[4. CETURKSNIS],$D13)) ->  | J13: =IF($B13>n,"",INDEX(Pārdošana[KOPSUMMA],$D13)) -> 
B14: 10 | C14: =IF($B14>n,"",LARGE(Pārdošana[KOPSUMMA],10)) ->  | D14: =IF($B14>n,"",IF(C13=C14,MATCH(C14,OFFSET(Pārdošana[KOPSUMMA],D13,),0)+D13,MATCH(C14,Pārdošana[KOPSUMMA],0))) ->  | E14: =IF($B14>n,"",INDEX(Pārdošana[PRODUKTS],D14)) ->  | F14: =IF($B14>n,"",INDEX(#REF!,$D14)) ->  | G14: =IF($B14>n,"",INDEX(Pārdošana[2. CETURKSNIS],$D14)) ->  | H14: =IF($B14>n,"",INDEX(Pārdošana[3. CETURKSNIS],$D14)) ->  | I14: =IF($B14>n,"",INDEX(Pārdošana[4. CETURKSNIS],$D14)) ->  | J14: =IF($B14>n,"",INDEX(Pārdošana[KOPSUMMA],$D14)) -> 
E15: ="" -> 
B16: =IekļautCitu="JĀ" -> FALSE | E16: Cits | F16: =SUM(Pārdošana[1. CETURKSNIS]) - SUM(F5:F14) -> 6533 | G16: =SUM(Pārdošana[2. CETURKSNIS]) - SUM(G5:G14) -> 5553.05 | H16: =SUM(Pārdošana[3. CETURKSNIS]) - SUM(H5:H14) -> 6959.8 | I16: =SUM(Pārdošana[4. CETURKSNIS]) - SUM(I5:I14) -> 8166.25 | J16: =SUM(Pārdošana[KOPSUMMA]) - SUM(J5:J14) -> 27212.1
E18: KOPSUMMA | F18: =SUM(Pārdošana[1. CETURKSNIS]) -> 18613.4 | G18: =SUM(Pārdošana[2. CETURKSNIS]) -> 16921.39 | H18: =SUM(Pārdošana[3. CETURKSNIS]) -> 23554.44 | I18: =SUM(Pārdošana[4. CETURKSNIS]) -> 24231 | J18: =SUM(Pārdošana[KOPSUMMA]) -> 83320.23
B22: ="KOPĀ UN "&n&" POPULĀRĀKIE PRODUKTI" -> KOPĀ UN 5 POPULĀRĀKIE PRODUKTI
